fUSD/lending_fUSD_20250301
["ID","MTS","AMOUNT","RATE_DAILY","PERIOD"]
[354940013,1740834651055,-1016.85,0.00027671,2]
[354940014,1740834651064,-500.0,0.00027671,2]
[354940015,1740834651074,-500.0,0.00027671,2]
[354940016,1740834651085,-874.21,0.00027671,2]
[354940017,1740834651095,-500.0,0.00027671,2]
[354940018,1740834651104,-814.79,0.00027671,2]
[354940019,1740834651113,-500.0,0.00027671,2]
[354940020,1740834651123,-500.0,0.00027671,2]
[354940021,1740834651132,-500.0,0.00027671,2]
[354940022,1740834651142,-430.92944176,0.00027671,2]
[354940023,1740834651152,-767.68,0.00027671,2]
[354940024,1740834651162,-761.26,0.00027671,2]
[354940025,1740834651174,-500.0,0.00027671,2]
[354940026,1740834651183,-500.0,0.00027671,2]
[354940027,1740834651193,-500.0,0.00027671,2]
[354940028,1740834651203,-500.0,0.00027671,2]
[354940029,1740834651215,-500.0,0.00027671,2]
[354940030,1740834651231,-1189.51,0.00027671,2]
[354940031,1740834651241,-806.21,0.00027671,2]
[354940032,1740834651251,-500.0,0.00027671,7]
[354940033,1740834651260,-500.0,0.00027671,2]
[354940034,1740834651270,-1388.44,0.00027671,2]
[354940035,1740834651279,-965.1,0.00027671,2]
[354940036,1740834651289,-500.0,0.00027671,2]
[354940037,1740834651299,-500.0,0.00027671,2]
[354940038,1740834651311,-1206.69,0.00027671,2]
[354940039,1740834651322,-500.0,0.00027671,2]
[354940040,1740834651332,-830.02,0.00027671,2]
[354940041,1740834651342,-500.0,0.00027671,2]
[354940042,1740834651351,-500.0,0.00027671,2]
[354940043,1740834651360,-946.25,0.00027671,2]
[354940044,1740834651370,-500.0,0.00027671,2]
[354940045,1740834651380,-522.02,0.00027671,2]
[354940046,1740834651390,-769.61,0.00027671,2]
[354940047,1740834651399,-1646.09,0.00027671,2]
[354940048,1740834651409,-189.36546322,0.00027671,2]
[354940049,1740834651424,-500.0,0.00027671,2]
[354940050,1740834651434,-500.0,0.00027671,2]
[354940051,1740834651443,-1363.24,0.00027671,2]
[354940052,1740834651453,-500.0,0.00027671,2]
[354940053,1740834651464,-500.0,0.00027671,2]
[354940054,1740834651474,-500.0,0.00027671,2]
[354940055,1740834651484,-500.0,0.00027671,2]
[354940056,1740834651493,-500.0,0.00027671,2]
[354940057,1740834651504,-500.0,0.00027671,2]
[354940058,1740834651514,-500.0,0.00027671,2]
[354940059,1740834651524,-1095.8,0.00027671,2]
[354940060,1740834651533,-325.90496947,0.00027671,2]
[354940061,1740834651543,-2178.94,0.00027671,2]
[354940062,1740834651552,-500.0,0.00027671,2]
[354940063,1740834651561,-500.0,0.00027671,2]
[354940064,1740834651571,-1975.15,0.00027671,2]
[354940065,1740834651581,-500.0,0.00027671,2]
[354940066,1740834651591,-1760.23,0.00027671,2]
[354940067,1740834651600,-944.31,0.00027671,2]
[354940068,1740834651610,-943.74,0.00027671,2]
[354940069,1740834651619,-500.0,0.00027671,2]
[354940070,1740834651628,-1189.29,0.00027671,2]
[354940071,1740834651637,-500.0,0.00027671,2]
[354940072,1740834651647,-500.0,0.00027671,2]
[354940073,1740834651655,-510.89671254,0.00027671,2]
[354940074,1740834651664,-985.54,0.00027671,2]
[354940075,1740834651674,-500.0,0.00027671,2]
[354940076,1740834651683,-500.0,0.00027671,2]
[354940077,1740834651693,-500.0,0.00027671,2]
[354940078,1740834651703,-1418.85,0.00027671,2]
[354940079,1740834651712,-588.25,0.00027671,2]
[354940080,1740834651721,-1009.4,0.00027671,2]
[354940081,1740834651730,-533.07810226,0.00027671,2]
[354940082,1740834651740,-500.0,0.00027671,2]
[354940083,1740834651749,-500.0,0.00027671,2]
[354940084,1740834651759,-500.0,0.00027671,2]
[354940085,1740834651768,-1288.16,0.00027671,2]
[354940086,1740834651777,-854.86,0.00027671,2]
[354940087,1740834651786,-500.0,0.00027671,2]
[354940088,1740834651795,-500.0,0.00027671,2]
[354940089,1740834651804,-500.0,0.00027671,2]
[354940090,1740834651814,-1462.16,0.00027671,2]
[354940091,1740834651823,-1141.55,0.00027671,2]
[354940092,1740834651833,-500.0,0.00027671,2]
[354940093,1740834651842,-1043.64,0.00027671,2]
[354940094,1740834651851,-500.0,0.00027671,2]
[354940095,1740834651860,-500.0,0.00027671,2]
[354940096,1740834651869,-500.0,0.00027671,2]
[354940097,1740834651878,-964.26,0.00027671,2]
[354940098,1740834651888,-500.0,0.00027671,2]
[354940099,1740834651897,-636.98,0.00027671,2]
[354940100,1740834651910,-500.0,0.00027671,2]
[354940101,1740834651924,-500.0,0.00027671,2]
[354940102,1740834651938,-1400.65,0.00027671,2]
[354940103,1740834651947,-1750.66,0.00027671,2]
[354940104,1740834651957,-500.0,0.00027671,2]
[354940105,1740834651967,-837.71,0.00027671,2]
[354940106,1740834651976,-1143.63,0.00027671,2]
[354940107,1740834651985,-500.0,0.00027671,2]
[354940108,1740834651995,-2121.89,0.00027671,2]
[354940109,1740834652004,-774.17,0.00027671,2]
[354940110,1740834652014,-500.0,0.00027671,2]
[354940111,1740834652024,-742.2,0.00027671,2]
[354940112,1740834652033,-500.0,0.00027671,2]
[354940113,1740834652043,-1178.55,0.00027671,2]
[354940114,1740834652052,-500.0,0.00027671,2]
[354940115,1740834652062,-173.89027766,0.00027671,2]
[354940116,1740834652072,-1213.11,0.00027671,2]
[354940117,1740834652083,-1083.82,0.00027671,2]
[354940118,1740834652094,-537.00262416,0.00027671,2]
[354940119,1740834652116,-500.0,0.00027671,2]
[354940120,1740834652131,-500.0,0.00027671,2]
[354940121,1740834652141,-500.0,0.00027671,2]
[354940122,1740834652150,-500.0,0.00027671,2]
[354940123,1740834652160,-853.04,0.00027671,2]
[354940124,1740834652170,-500.0,0.00027671,2]
[354940125,1740834652179,-222.09565625,0.00027671,2]
[354940126,1740834652189,-1330.86,0.00027671,2]
[354940127,1740834652199,-682.29,0.00027671,2]
[354940128,1740834652208,-2015.15,0.00027671,2]
[354940129,1740834652218,-500.0,0.00027671,2]
[354940130,1740834652227,-267.75730891,0.00027671,2]
[354940131,1740834652249,-232.24269109,0.00027671,2]
[354940132,1740834652259,-83.30240891,0.00027671,2]
[354940133,1740834652270,-416.69759109,0.00027671,2]
[354940134,1740834652281,-724.75,0.00027671,2]
[354940135,1740834652290,-68.84342767,0.00027671,2]
[354940136,1740834652302,-1300.81657233,0.00027671,2]
[354940137,1740834652311,-184.54686767,0.00027671,2]
[354940138,1740834652322,-685.50313233,0.00027671,2]
[354940139,1740834652332,-721.61,0.00027671,2]
[354940140,1740834652341,-578.97,0.00027671,2]
[354940141,1740834652351,-927.57,0.00027671,2]
[354940142,1740834652361,-789.49,0.00027671,2]
[354940143,1740834652370,-500.0,0.00027671,2]
[354940144,1740834652380,-272.65690017,0.00027671,2]
[354940145,1740834723270,150.0,0.0002379,30]
[354940146,1740834726860,150.0,0.0002379,30]
[354940147,1740834728835,150.0,0.0002379,30]
[354940148,1740834733640,501.64733149,0.0002379,30]
[354940149,1740834737481,2276.83846706,0.0002379,30]
[354940150,1740834739457,355.55341643,0.0002379,30]
[354940151,1740834904683,508.0,0.0002379,30]
[354940152,1740835278354,152.35631055,0.00025,30]
[354940153,1740835346789,250.0,0.00013,2]
[354940154,1740835358670,2970.0,0.00025,30]
[354940167,1740835745394,-1157.88926614,0.000149,2]
[354940188,1740835832068,-587.30200296,0.000149,2]
[354940189,1740835832078,-7140.33300381,0.00015,2]
[354940190,1740835832130,-9307.02180593,0.00015,2]
[354940191,1740835832142,-774.42493428,0.00015,2]
[354940192,1740835832258,-10852.23557576,0.00015,2]
[354940193,1740835832272,-2674.2,0.00015,2]
[354940194,1740835832331,-3499.37093081,0.00015,2]
[354940195,1740835832344,-4458.09753364,0.00015,2]
[354940196,1740835832448,-500.0,0.00015,2]
[354940197,1740835832461,-1434.30223989,0.00015,2]
[354940222,1740835837883,-2811.46374793,0.00015,2]
[354940224,1740835838004,-3960.79463889,0.00015,2]
[354940241,1740835842661,-10826.18720052,0.00015,2]
[354940264,1740835844289,-3930.2042086,0.00015,2]
[354940265,1740835844302,-270.73903622,0.00015,2]
[354940266,1740835844314,-22175.85298853,0.00015,2]
[354940267,1740835844324,-520238.01205633,0.00015,2]
[354940268,1740835844339,-561.81795246,0.000177,2]
[354940269,1740835844349,-1836.43196964,0.000179,2]
[354940270,1740835844359,-1836.43196962,0.00018831,2]
[354940271,1740835844369,-1836.43196962,0.00019762,2]
[354940272,1740835844379,-1836.43196962,0.00020693,2]
[354940273,1740835844390,-160.58,0.00021415,2]
[354940274,1740835844400,-1836.43196962,0.00021624,3]
[354940275,1740835844410,-162.83,0.00021918,2]
[354940276,1740835844420,-159.87917999,0.00022,5]
[354940277,1740835844432,-2096.44946024,0.000221,5]
[354940278,1740835844442,-1836.43196962,0.00022555,3]
[354940279,1740835844453,-151.0,0.00022833,2]
[354940280,1740835844463,-1836.43196962,0.00023486,3]
[354940281,1740835844473,-331.85788857,0.00023646,2]
[354940282,1740835844484,-23900.0,0.00023647,2]
[354940283,1740835844494,-150.99,0.00024174,2]
[354940284,1740835844505,-1000.0,0.0002433,2]
[354940285,1740835844516,-1836.43196962,0.00024417,3]
[354940286,1740835844527,-236.90637043,0.000249,2]
[354940287,1740835844537,-650.36,0.00024944,2]
[354940288,1740835844547,-158.0,0.00025,2]
[354940289,1740835844558,-301357.18016173,0.00025,2]
[354940290,1740835844568,-21418.11212396,0.00025,2]
[354940291,1740835844578,-59173.2853435,0.00025,2]
[354940292,1740835844588,-158.28598177,0.00025,7]
[354940293,1740835844599,-156.99,0.00025,2]
[354940294,1740835844609,-156.99,0.00025,2]
[354940295,1740835844619,-156.99,0.00025,2]
[354940296,1740835844630,-156.99,0.00025,2]
[354940297,1740835844639,-156.99,0.00025,2]
[354940298,1740835844649,-1836.43196962,0.00025348,4]
[354940299,1740835844660,-500.0,0.00025644,2]
[354940300,1740835844670,-250.0,0.00026243,2]
[354940301,1740835844680,-1836.43196962,0.00026279,4]
[354940302,1740835844690,-2251.77,0.00026411,2]
[354940303,1740835844700,-162.0,0.00026499,30]
[354940304,1740835844711,-152.29,0.00026508,120]
[354940305,1740835844721,-174.78,0.00026708,2]
[354940306,1740835844732,-150.0,0.00026889,7]
[354940307,1740835844742,-1026.896,0.00027208,15]
[354940308,1740835844751,-650.36,0.00027208,2]
[354940309,1740835844761,-1836.43196962,0.0002721,4]
[354940310,1740835844771,-156.99,0.00027287,2]
[354940311,1740835844781,-1146.0964,0.00027297,2]
[354940312,1740835844792,-739.5345,0.00027297,2]
[354940313,1740835844806,-20432.26927088,0.00027297,30]
[354940314,1740835844816,-1000.0,0.00027297,2]
[354940315,1740835844827,-4586.9633,0.00027297,2]
[354940316,1740835844838,-10383.1473,0.00027297,2]
[354940317,1740835844848,-397.1099,0.00027297,2]
[354940318,1740835844858,-150.0,0.00027346,2]
[354940319,1740835844868,-181.78808446,0.00027363,2]
[354940320,1740835844881,-1000.0,0.00027371,2]
[354940321,1740835844892,-316.59870839,0.00027373,2]
[354940322,1740835844902,-156.99,0.00027387,2]
[354940323,1740835844912,-156.99,0.00027387,2]
[354940324,1740835844923,-156.99,0.00027387,2]
[354940325,1740835844934,-156.99,0.00027387,2]
[354940326,1740835844944,-100000.0,0.00027397,5]
[354940327,1740835844954,-2747.456276,0.00027397,2]
[354940328,1740835844964,-3562.263885,0.00027397,2]
[354940329,1740835844974,-153.088695,0.00027397,2]
[354940330,1740835844984,-150.369306,0.00027397,2]
[354940331,1740835844994,-723.89,0.00027397,2]
[354940332,1740835845005,-858.65,0.00027397,2]
[354940333,1740835845016,-519.17120833,0.00027397,2]
[354940334,1740835845028,-500.0,0.00027397,2]
[354940335,1740835845039,-500.0,0.00027397,2]
[354940336,1740835845049,-500.0,0.00027397,2]
[354940337,1740835845059,-500.0,0.00027397,2]
[354940338,1740835845069,-500.0,0.00027397,2]
[354940339,1740835845080,-989.74,0.00027397,2]
[354940340,1740835845090,-500.0,0.00027397,2]
[354940341,1740835845100,-652.82,0.00027397,2]
[354940342,1740835845111,-739.03,0.00027397,2]
[354940343,1740835845121,-500.0,0.00027397,2]
[354940344,1740835845131,-1106.14,0.00027397,2]
[354940345,1740835845142,-500.0,0.00027397,2]
[354940346,1740835845153,-500.0,0.00027397,2]
[354940347,1740835845162,-529.4917064,0.00027397,2]
[354940348,1740835845172,-500.0,0.00027397,2]
[354940349,1740835845182,-578.14924871,0.00027397,2]
[354940350,1740835845193,-488.94455729,0.00027397,2]
[354940351,1740835845203,-500.0,0.00027397,2]
[354940352,1740835845212,-500.0,0.00027397,2]
[354940353,1740835845222,-500.0,0.00027397,2]
[354940354,1740835845233,-500.0,0.00027397,2]
[354940355,1740835845242,-500.0,0.00027397,2]
[354940356,1740835845252,-865.62,0.00027397,2]
[354940357,1740835845261,-903.41,0.00027397,2]
[354940358,1740835845273,-500.0,0.00027397,2]
[354940359,1740835845283,-500.0,0.00027397,2]
[354940360,1740835845293,-500.0,0.00027397,2]
[354940361,1740835845303,-500.0,0.00027397,2]
[354940362,1740835845314,-500.0,0.00027397,2]
[354940363,1740835845324,-690.48,0.00027397,2]
[354940364,1740835845334,-500.0,0.00027397,2]
[354940365,1740835845344,-500.0,0.00027397,2]
[354940366,1740835845354,-500.0,0.00027397,2]
[354940367,1740835845363,-500.0,0.00027397,2]
[354940368,1740835845373,-583.9,0.00027397,2]
[354940369,1740835845383,-883.91,0.00027397,2]
[354940370,1740835845392,-533.55854632,0.00027397,2]
[354940371,1740835845402,-500.0,0.00027397,2]
[354940372,1740835845412,-500.0,0.00027397,2]
[354940373,1740835845422,-680.35,0.00027397,2]
[354940374,1740835845432,-500.0,0.00027397,2]
[354940375,1740835845441,-500.0,0.00027397,2]
[354940376,1740835845451,-531.76997798,0.00027397,2]
[354940377,1740835845461,-767.9,0.00027397,2]
[354940378,1740835845471,-500.0,0.00027397,2]
[354940379,1740835845481,-1112.01,0.00027397,2]
[354940380,1740835845490,-709.66,0.00027397,2]
[354940381,1740835845500,-500.0,0.00027397,2]
[354940382,1740835845510,-500.0,0.00027397,2]
[354940383,1740835845520,-510.09416809,0.00027397,2]
[354940384,1740835845530,-500.0,0.00027397,2]
[354940385,1740835845540,-831.27,0.00027397,2]
[354940386,1740835845550,-625.44,0.00027397,2]
[354940387,1740835845561,-500.0,0.00027397,2]
[354940388,1740835845570,-500.0,0.00027397,2]
[354940389,1740835845580,-797.55,0.00027397,2]
[354940390,1740835845591,-518.38282078,0.00027397,2]
[354940391,1740835845600,-525.7931886,0.00027397,2]
[354940392,1740835845610,-500.0,0.00027397,2]
[354940393,1740835845620,-688.74,0.00027397,2]
[354940394,1740835845630,-1285.24,0.00027397,2]
[354940395,1740835845640,-723.7,0.00027397,2]
[354940396,1740835845650,-500.0,0.00027397,2]
[354940397,1740835845660,-530.72,0.00027397,2]
[354940398,1740835845670,-295.38525991,0.00027397,2]
[354940399,1740835845680,-957.79,0.00027397,2]
[354940400,1740835845691,-1085.96,0.00027397,2]
[354940401,1740835845701,-590.88,0.00027397,2]
[354940402,1740835845711,-512.88668885,0.00027397,2]
[354940403,1740835845721,-500.0,0.00027397,2]
[354940404,1740835845731,-500.0,0.00027397,2]
[354940405,1740835845741,-500.0,0.00027397,2]
[354940406,1740835845751,-500.0,0.00027397,2]
[354940407,1740835845761,-500.0,0.00027397,2]
[354940408,1740835845772,-544.96,0.00027397,2]
[354940410,1740835845782,-500.0,0.00027397,2]
[354940412,1740835845793,-682.57,0.00027397,2]
[354940414,1740835845807,-500.0,0.00027397,2]
[354940416,1740835845817,-616.67,0.00027397,2]
[354940417,1740835845827,-500.0,0.00027397,2]
[354940418,1740835845839,-500.0,0.00027397,2]
[354940419,1740835845849,-994.36,0.00027397,2]
[354940420,1740835845859,-565.33400396,0.00027397,2]
[354940421,1740835845870,-608.46,0.00027397,2]
[354940422,1740835845882,-500.0,0.00027397,2]
[354940423,1740835845892,-500.0,0.00027397,2]
[354940424,1740835845901,-1007.56,0.00027397,2]
[354940425,1740835845912,-500.0,0.00027397,2]
[354940426,1740835845922,-613.12,0.00027397,2]
[354940427,1740835845932,-500.0,0.00027397,2]
[354940428,1740835845942,-500.0,0.00027397,2]
[354940429,1740835845952,-500.0,0.00027397,2]
[354940430,1740835845961,-500.0,0.00027397,2]
[354940431,1740835845972,-500.0,0.00027397,2]
[354940432,1740835845982,-604.06,0.00027397,2]
[354940433,1740835845991,-500.0,0.00027397,2]
[354940434,1740835846001,-500.0,0.00027397,2]
[354940435,1740835846011,-1201.61,0.00027397,2]
[354940436,1740835846021,-686.82,0.00027397,2]
[354940437,1740835846031,-500.0,0.00027397,2]
[354940438,1740835846042,-861.67,0.00027397,2]
[354940439,1740835846257,-500.0,0.00027397,2]
[354940440,1740835846269,-500.0,0.00027397,2]
[354940441,1740835846280,-500.0,0.00027397,2]
[354940442,1740835846290,-891.93,0.00027397,2]
[354940443,1740835846300,-500.0,0.00027397,2]
[354940444,1740835846310,-500.0,0.00027397,2]
[354940445,1740835846320,-500.0,0.00027397,2]
[354940446,1740835846330,-500.0,0.00027397,2]
[354940447,1740835846340,-522.42,0.00027397,2]
[354940448,1740835846350,-500.0,0.00027397,2]
[354940449,1740835846360,-545.89,0.00027397,2]
[354940450,1740835846370,-500.0,0.00027397,2]
[354940451,1740835846380,-776.04,0.00027397,2]
[354940452,1740835846390,-1214.15,0.00027397,2]
[354940453,1740835846400,-883.59,0.00027397,2]
[354940455,1740835846410,-500.0,0.00027397,2]
[354940457,1740835846420,-500.0,0.00027397,2]
[354940458,1740835846429,-899.28,0.00027397,2]
[354940459,1740835846439,-500.0,0.00027397,2]
[354940460,1740835846450,-500.0,0.00027397,2]
[354940461,1740835846460,-500.0,0.00027397,2]
[354940462,1740835846471,-741.18,0.00027397,2]
[354940463,1740835846482,-500.0,0.00027397,2]
[354940464,1740835846491,-823.54,0.00027397,2]
[354940465,1740835846502,-500.0,0.00027397,2]
[354940466,1740835846512,-500.0,0.00027397,2]
[354940467,1740835846524,-500.0,0.00027397,2]
[354940468,1740835846534,-500.0,0.00027397,2]
[354940469,1740835846543,-754.28,0.00027397,2]
[354940471,1740835846554,-545.3111143,0.00027397,2]
[354940472,1740835846565,-688.29,0.00027397,2]
[354940473,1740835846576,-500.0,0.00027397,2]
[354940474,1740835846586,-527.85077557,0.00027397,2]
[354940475,1740835846596,-900.84,0.00027397,2]
[354940476,1740835846606,-920.49,0.00027397,2]
[354940477,1740835846616,-500.0,0.00027397,2]
[354940478,1740835846627,-1857.36,0.00027397,2]
[354940479,1740835846637,-500.0,0.00027397,2]
[354940480,1740835846648,-710.58,0.00027397,2]
[354940481,1740835846658,-500.0,0.00027397,2]
[354940482,1740835846669,-500.0,0.00027397,2]
[354940483,1740835846679,-500.0,0.00027397,2]
[354940484,1740835846689,-500.0,0.00027397,2]
[354940485,1740835846699,-500.0,0.00027397,2]
[354940486,1740835846710,-607.31,0.00027397,2]
[354940487,1740835846720,-500.0,0.00027397,2]
[354940488,1740835846731,-500.0,0.00027397,2]
[354940489,1740835846742,-865.23,0.00027397,2]
[354940490,1740835846752,-511.96268933,0.00027397,2]
[354940491,1740835846762,-801.36,0.00027397,2]
[354940492,1740835846775,-500.0,0.00027397,2]
[354940493,1740835846785,-500.0,0.00027397,2]
[354940494,1740835846797,-1594.12,0.00027397,2]
[354940495,1740835846809,-500.0,0.00027397,2]
[354940496,1740835846819,-500.0,0.00027397,2]
[354940497,1740835846829,-500.0,0.00027397,2]
[354940498,1740835846839,-500.0,0.00027397,2]
[354940499,1740835846850,-932.11,0.00027397,2]
[354940500,1740835846861,-500.0,0.00027397,2]
[354940501,1740835846871,-1090.38,0.00027397,2]
[354940502,1740835846883,-500.0,0.00027397,2]
[354940503,1740835846894,-516.25577231,0.00027397,2]
[354940504,1740835846904,-500.0,0.00027397,2]
[354940505,1740835846914,-514.66083261,0.00027397,2]
[354940506,1740835846925,-558.0468756,0.00027397,2]
[354940507,1740835846935,-500.0,0.00027397,2]
[354940508,1740835846945,-640.64041097,0.00027397,2]
[354940509,1740835846955,-1008.51,0.00027397,2]
[354940510,1740835846965,-760.85,0.00027397,2]
[354940511,1740835846975,-500.0,0.00027397,2]
[354940512,1740835846985,-500.0,0.00027397,2]
[354940513,1740835846996,-1508.92,0.00027397,2]
[354940514,1740835847006,-500.0,0.00027397,2]
[354940515,1740835847016,-514.26043187,0.00027397,2]
[354940516,1740835847028,-500.0,0.00027397,2]
[354940517,1740835847038,-1078.46,0.00027397,2]
[354940518,1740835847047,-500.0,0.00027397,2]
[354940519,1740835847057,-539.35512554,0.00027397,2]
[354940520,1740835847067,-500.0,0.00027397,2]
[354940521,1740835847077,-1004.48,0.00027397,2]
[354940522,1740835847088,-500.0,0.00027397,2]
[354940523,1740835847098,-500.0,0.00027397,2]
[354940524,1740835847108,-500.0,0.00027397,2]
[354940525,1740835847118,-813.52,0.00027397,2]
[354940526,1740835847128,-519.67161918,0.00027397,2]
[354940527,1740835847139,-1272.74,0.00027397,2]
[354940528,1740835847149,-965.69,0.00027397,2]
[354940529,1740835847159,-1613.54,0.00027397,2]
[354940530,1740835847169,-500.0,0.00027397,2]
[354940531,1740835847179,-1249.63,0.00027397,2]
[354940532,1740835847189,-500.0,0.00027397,2]
[354940533,1740835847200,-867.39,0.00027397,2]
[354940534,1740835847210,-500.0,0.00027397,2]
[354940535,1740835847221,-1090.18,0.00027397,2]
[354940536,1740835847230,-525.15099636,0.00027397,2]
[354940537,1740835847241,-500.0,0.00027397,2]
[354940538,1740835847251,-500.0,0.00027397,2]
[354940539,1740835847260,-500.0,0.00027397,2]
[354940540,1740835847271,-3128.91,0.00027397,2]
[354940541,1740835847281,-812.15,0.00027397,2]
[354940542,1740835847291,-1810.55,0.00027397,2]
[354940543,1740835847302,-500.0,0.00027397,2]
[354940544,1740835847312,-500.0,0.00027397,2]
[354940545,1740835847323,-584.68867998,0.00027397,2]
[354940546,1740835847333,-632.73048689,0.00027397,2]
[354940547,1740835847343,-925.29,0.00027397,2]
[354940548,1740835847354,-500.0,0.00027397,2]
[354940549,1740835847364,-500.0,0.00027397,2]
[354940550,1740835847374,-1997.36,0.00027397,2]
[354940551,1740835847384,-999.13,0.00027397,2]
[354940552,1740835847394,-746.89,0.00027397,2]
[354940553,1740835847404,-783.62,0.00027397,2]
[354940554,1740835847413,-870.47,0.00027397,2]
[354940555,1740835847424,-500.0,0.00027397,2]
[354940556,1740835847433,-500.0,0.00027397,2]
[354940557,1740835847443,-703.71,0.00027397,2]
[354940558,1740835847454,-500.0,0.00027397,2]
[354940559,1740835847464,-956.67,0.00027397,2]
[354940560,1740835847474,-539.23,0.00027397,2]
[354940561,1740835847483,-500.0,0.00027397,2]
[354940562,1740835847494,-511.41408996,0.00027397,2]
[354940563,1740835847504,-500.0,0.00027397,2]
[354940564,1740835847514,-520.41692997,0.00027397,2]
[354940565,1740835847525,-829.89,0.00027397,2]
[354940566,1740835847535,-500.0,0.00027397,2]
[354940567,1740835847545,-500.0,0.00027397,2]
[354940568,1740835847555,-518.25195469,0.00027397,2]
[354940569,1740835847565,-422.84097498,0.00027397,2]
[354940570,1740835847575,-500.0,0.00027397,2]
[354940571,1740835847585,-500.0,0.00027397,2]
[354940572,1740835847595,-884.67,0.00027397,2]
[354940573,1740835847606,-1802.39,0.00027397,2]
[354940574,1740835847616,-1283.93,0.00027397,2]
[354940575,1740835847626,-1176.7,0.00027397,2]
[354940576,1740835847635,-522.34423432,0.00027397,2]
[354940577,1740835847646,-500.0,0.00027397,2]
[354940578,1740835847656,-500.0,0.00027397,2]
[354940579,1740835847667,-425.80538284,0.00027397,2]
[354940580,1740835847678,-500.0,0.00027397,2]
[354940581,1740835847688,-500.0,0.00027397,2]
[354940582,1740835847699,-705.48,0.00027397,2]
[354940583,1740835847710,-704.74,0.00027397,2]
[354940584,1740835847720,-1340.31,0.00027397,2]
[354940585,1740835847731,-500.0,0.00027397,2]
[354940586,1740835847742,-500.0,0.00027397,2]
[354940587,1740835847752,-500.0,0.00027397,2]
[354940588,1740835847763,-993.5,0.00027397,2]
[354940589,1740835847774,-500.0,0.00027397,2]
[354940590,1740835847784,-500.0,0.00027397,2]
[354940591,1740835847795,-1945.07,0.00027397,2]
[354940592,1740835847808,-500.0,0.00027397,2]
[354940593,1740835847818,-500.0,0.00027397,2]
[354940594,1740835847828,-500.0,0.00027397,2]
[354940595,1740835847839,-500.0,0.00027397,2]
[354940596,1740835847849,-616.79,0.00027397,2]
[354940597,1740835847859,-781.95,0.00027397,2]
[354940598,1740835847869,-1086.8,0.00027397,2]
[354940599,1740835847880,-1604.77,0.00027397,2]
[354940600,1740835847891,-500.0,0.00027397,2]
[354940601,1740835847901,-500.0,0.00027397,2]
[354940602,1740835847911,-811.07,0.00027397,2]
[354940603,1740835847920,-500.0,0.00027397,2]
[354940604,1740835847930,-500.0,0.00027397,2]
[354940605,1740835847940,-500.0,0.00027397,2]
[354940606,1740835847949,-910.54,0.00027397,2]
[354940607,1740835847959,-865.09,0.00027397,2]
[354940608,1740835847969,-1080.34,0.00027397,2]
[354940609,1740835847979,-872.84,0.00027397,2]
[354940610,1740835847989,-500.0,0.00027397,2]
[354940611,1740835847998,-500.0,0.00027397,2]
[354940612,1740835848008,-1122.73,0.00027397,2]
[354940613,1740835848018,-500.0,0.00027397,2]
[354940614,1740835848031,-500.0,0.00027397,2]